[Event "V Sunway Sitges Open 2018"]
[Site "Sitges"]
[Date "2018.12.20"]
[Round "7"]
[White "Walter Travella, German"]
[Black "Martinez Liria, Pedro"]
[Result "1-0"]
[ECO "C41"]
[WhiteElo "1917"]
[BlackElo "1907"]
[Annotator "NA RC"]
[PlyCount "117"]
[EventDate "2018.12.14"]
[EventType "swiss"]
[EventCountry "ESP"]
[SourceTitle "playchess.com"]
[Source "ChessBase"]
[SourceQuality "1"]
[TimeControl "40/5400+30:1800+30"]

1. e4 {[%emt 0:01:42]} e5 {[%emt 0:00:00]} 2. Nf3 {[%emt 0:01:27]} d6 {[%emt 0:00:33]} 3. d4 {[%emt 0:00:51]} Nd7 {[%emt 0:00:06]} 4. c3 {[%emt 0:02:24]} Ngf6 {[%emt 0:01:16] C41: Philidor Defence} 5. Bc4 {[%emt 0:05:40]} (5. Bd3 Be7 6. O-O O-O 7. Re1 c6 8. h3 Re8 9. a4 Qc7 10. Nbd2 a5 11. Nf1 Bf8 12. Ng3 g6 13. Be3 Bg7 14. Qd2 Nf8 15. Rad1 {½-½ (52) Pakleza,Z (2495)-Panchanathan,M (2486) Badalona 2008}) 5... h6 {[%emt 0:00:23]} 6. Qb3 {[%emt 0:04:14]} Qe7 {[%emt 0:00:31]} 7. O-O {[%emt 0:00:45]} g5 $146 {[%emt 0:10:29]} ({Predecessor:} 7... Nxe4 8. Re1 Nef6 9. dxe5 dxe5 10. Bf4 Nc5 11. Qc2 Be6 12. Rxe5 Ncd7 {1-0 (35) Alonso Pardo,D (1581)-Arias Bellido,S (1324) Madrid 2016}) 8. Bd3 {[%emt 0:02:52]} Bg7 {[%emt 0:00:28]} 9. Be3 {[%emt 0:04:29]} Nh5 {[%emt 0:06:19]} 10. Re1 {[%emt 0:03:39]} Nf4 {[%emt 0:05:51]} 11. Bxf4 {[%emt 0:00:37]} gxf4 {[%emt 0:00:07]} 12. Na3 {[%emt 0:04:52]} Nf8 {[%emt 0:04:08]} 13. Nc4 {[%emt 0:01:34]} Ng6 {[%emt 0:04:05]} 14. Na5 {[%emt 0:04:18]} O-O {[%emt 0:02:13]} 15. Nc4 {[%emt 0:04:19]} Bg4 {[%emt 0:01:55]} 16. Ncd2 {[%emt 0:01:01]} Rab8 {[%emt 0:03:40]} 17. Kf1 {[%emt 0:05:31]} Kh8 {[%emt 0:02:32]} 18. Qa3 {[%emt 0:02:51]} a6 {[%emt 0:06:59]} 19. h3 {[%emt 0:00:41]} Bd7 {[%emt 0:01:32]} 20. Ke2 {[%emt 0:14:18]} Rg8 {[%emt 0:09:54]} 21. Rh1 {[%emt 0:00:24]} c5 {[%emt 0:04:12]} 22. dxc5 {[%emt 0:03:16]} dxc5 {[%emt 0:00:07]} 23. Bc4 {[%emt 0:01:46]} b5 {[%emt 0:09:11]} 24. Bd5 {[%emt 0:00:37]} b4 {[%emt 0:05:28]} 25. Qb3 {[%emt 0:00:31]} Rgf8 {[%emt 0:00:41]} 26. c4 {[%emt 0:01:20]} a5 {[%emt 0:02:17]} 27. Rag1 {[%emt 0:00:31]} Rb6 {[%emt 0:01:09]} 28. Kf1 {[%emt 0:04:21]} Rg8 {[%emt 0:02:21]} 29. h4 {[%emt 0:00:53]} Bf6 {[%emt 0:01:33]} 30. Ng5 {[%emt 0:03:14]} Rg7 {[%emt 0:03:57]} 31. Ndf3 {[%emt 0:06:21]} Kg8 {[%emt 0:00:26]} 32. h5 {[%emt 0:01:40]} Nf8 {[%emt 0:00:52]} 33. Nh3 {[%emt 0:01:13]} Ne6 {[%emt 0:02:09]} 34. g3 {[%emt 0:01:09]} a4 {[%emt 0:04:25]} 35. Qd3 {[%emt 0:01:45]} fxg3 {[%emt 0:00:40]} 36. Rxg3 {[%emt 0:00:41]} Nf4 {[%emt 0:00:34]} 37. Rxg7+ {[%emt 0:01:05]} Kxg7 {[%emt 0:00:33]} 38. Nxf4 {[%emt 0:00:54]} exf4 {[%emt 0:00:03]} 39. Rg1+ {[%emt 0:00:59]} Bg5 {[%emt 0:02:51]} 40. e5 {[%emt 0:00:00]} Kf8 {[%emt 0:00:00]} 41. Qh7 {[%emt 0:03:06]} Bh3+ {[%emt 0:03:17]} 42. Ke1 {[%emt 0:00:24]} Ke8 {[%emt 0:00:12]} 43. Qg8+ {[%emt 0:00:52]} Kd7 {[%emt 0:01:14]} 44. Nxg5 {[%emt 0:01:12]} hxg5 {[%emt 0:00:44]} 45. Rxg5 {[%emt 0:01:17]} Be6 {[%emt 0:01:13]} 46. h6 {[%emt 0:01:52]} Bxd5 {[%emt 0:00:46]} 47. h7 {[%emt 0:00:46]} Rh6 {[%emt 0:00:13]} 48. cxd5 {[%emt 0:01:05]} Rxh7 {[%emt 0:00:41]} 49. Qxh7 {[%emt 0:02:25]} Qxg5 {[%emt 0:00:52]} 50. Qxf7+ {[%emt 0:00:11]} Qe7 {[%emt 0:02:12]} 51. Qxf4 {[%emt 0:08:46]} Kc8 {[%emt 0:00:28]} 52. Qf5+ $18 {[%emt 0:00:44]} Kb7 {[%emt 0:00:22]} 53. d6 {[%emt 0:02:53]} Qh4 {[%emt 0:00:40]} 54. Qd7+ {[%emt 0:00:35]} Kb6 {[%emt 0:00:15]} 55. Qc7+ {[%emt 0:01:05]} Kb5 {[%emt 0:00:07]} 56. Qb7+ {[%emt 0:00:43]} Kc4 {[%emt 0:00:08]} 57. Qf3 {[%emt 0:01:00]} Qh7 {[%emt 0:01:39]} 58. Kd2 {[%emt 0:02:38]} Qb1 {[%emt 0:00:53]} 59. b3+ {[%emt 0:00:18] Kd5} 1-0

[Event "V Sunway Sitges Open 2018"]
[Site "Sitges"]
[Date "2018.12.20"]
[Round "7"]
[White "Arias Castanedo, Jacinto"]
[Black "Sosa Suarez, Carla Cristina"]
[Result "0-1"]
[ECO "D05"]
[WhiteElo "1811"]
[BlackElo "1939"]
[Annotator "NA"]
[PlyCount "102"]
[EventDate "2018.12.14"]
[EventType "swiss"]
[EventCountry "ESP"]
[SourceTitle "playchess.com"]
[Source "ChessBase"]
[SourceQuality "1"]
[TimeControl "40/5400+30:1800+30"]

1. d4 {[%emt 0:08:22]} e6 {[%emt 0:00:00]} 2. Nf3 {[%emt 0:00:09]} d5 {[%emt 0:00:03]} 3. e3 {[%emt 0:00:07]} Nf6 {[%emt 0:00:18]} 4. Bd3 {[%emt 0:00:57]} Nbd7 {[%emt 0:06:26]} 5. Nbd2 {[%emt 0:00:30]} c5 {[%emt 0:01:17]} 6. c3 {[%emt 0:00:10]} Bd6 {[%emt 0:03:01]} 7. O-O {[%emt 0:00:29]} O-O 8. e4 {[%emt 0:02:37]} dxe4 {[%emt 0:04:16]} 9. Nxe4 {[%emt 0:00:11]} Nxe4 {[%emt 0:00:56]} 10. Bxe4 {[%emt 0:00:12]} h6 {[%emt 0:03:14]} 11. Re1 {[%emt 0:05:01] LiveBook: 3 Games B17: Caro-Kann: Modern Line (4...Nd7)} (11. Bc2 Qc7 12. Re1 Rd8 13. h3 Nf6 14. Qe2 cxd4 15. Nxd4 Bh2+ 16. Kh1 Bf4 17. Nb5 Qb8 18. a4 Bd7 19. Bxf4 Qxf4 {½-½ (48) Kamsky,G (2595)-Karpov,A (2730) Tilburg 1991}) 11... Nf6 {[%emt 0:02:08]} 12. Bc2 {[%emt 0:00:49]} Qc7 {[%emt 0:04:57]} 13. h3 {[%emt 0:00:33]} (13. dxc5 $14 Bxc5 14. Ne5) 13... b6 {[%emt 0:08:10]} 14. Qe2 {[%emt 0:01:49]} Bb7 {[%emt 0:04:25]} 15. dxc5 $146 {[%emt 0:01:38]} ({Predecessor:} 15. Be3 Rfd8 16. Rad1 c4 17. Bc1 {0-1 (69) Kirchhammer,R-Funke,E Leipzig 1956}) 15... Bxc5 {[%emt 0:01:35]} 16. Be3 {[%emt 0:06:53]} a5 {[%emt 0:05:56]} 17. Bxc5 {[%emt 0:11:12]} Qxc5 {[%emt 0:00:39]} 18. Ne5 {[%emt 0:07:40]} Qd5 {[%emt 0:07:32]} 19. f3 {[%emt 0:03:17]} Rad8 {[%emt 0:06:07]} 20. Bb3 {[%emt 0:16:40]} Qc5+ {[%emt 0:02:18]} 21. Qf2 {[%emt 0:09:54]} Qxf2+ {[%emt 0:08:26]} 22. Kxf2 {[%emt 0:02:03]} Rd2+ {[%emt 0:00:51]} 23. Re2 {[%emt 0:00:12]} Rfd8 {[%emt 0:05:19]} 24. Rae1 {[%emt 0:00:59]} Ba6 {[%emt 0:02:19]} 25. Nc4 {[%emt 0:02:26]} Rxe2+ {[%emt 0:01:45]} 26. Rxe2 {[%emt 0:00:32]} a4 {[%emt 0:00:14]} 27. Rd2 {[%emt 0:01:38]} Rxd2+ {[%emt 0:00:33]} 28. Nxd2 {[%emt 0:00:10]} axb3 {[%emt 0:00:03]} 29. Nxb3 {[%emt 0:02:23]} Nd5 {[%emt 0:01:08]} 30. g3 {[%emt 0:00:57]} Bc4 {[%emt 0:02:09]} 31. Nc1 {[%emt 0:00:12]} Ba6 {[%emt 0:00:56]} 32. Nb3 {[%emt 0:00:38]} Kf8 {[%emt 0:02:21]} 33. Nd2 {[%emt 0:00:58]} Ke7 {[%emt 0:02:00]} 34. a3 {[%emt 0:01:36]} f5 {[%emt 0:01:02]} 35. c4 {[%emt 0:00:40]} Nf6 {[%emt 0:00:35]} 36. Ke3 {[%emt 0:00:12]} e5 {[%emt 0:00:41]} 37. b3 {[%emt 0:00:32]} g6 {[%emt 0:01:18]} 38. b4 {[%emt 0:03:26]} Kd6 {[%emt 0:01:48]} 39. a4 {[%emt 0:04:44]} Nh5 {[%emt 0:03:28]} 40. Kf2 {[%emt 0:00:00]} Nf6 {[%emt 0:00:00]} 41. Ke3 {[%emt 0:01:36]} Ne8 {[%emt 0:07:21]} 42. Kd3 {[%emt 0:02:43]} Nc7 {[%emt 0:05:05]} 43. Kc3 {[%emt 0:02:17]} Bb7 {[%emt 0:01:41]} 44. Nb3 {[%emt 0:06:25]} Bxf3 {[%emt 0:02:46]} 45. c5+ {[%emt 0:01:52]} bxc5 {[%emt 0:00:51]} 46. Nxc5 $11 {[%emt 0:00:18]} Nd5+ {[%emt 0:03:51]} 47. Kb3 {[%emt 0:00:14]} Nc7 $2 {[%emt 0:03:38]} (47... Bd1+ $19 48. Ka3 e4) 48. Nd3 $2 {[%emt 0:00:49]} e4 {[%emt 0:02:13]} 49. Ne1 {[%emt 0:00:14]} Bd1+ {[%emt 0:00:22]} 50. Ka3 {[%emt 0:00:10]} g5 $19 {[%emt 0:00:50]} 51. Ng2 {[%emt 0:00:40]} Nd5 {[%emt 0:01:26]} 0-1

[Event "V Sunway Sitges Open 2018"]
[Site "Sitges"]
[Date "2018.12.20"]
[Round "7"]
[White "Jenny, Gerald"]
[Black "Orti Boix, Miguel"]
[Result "1/2-1/2"]
[ECO "A85"]
[WhiteElo "1807"]
[BlackElo "1589"]
[Annotator "NA RC"]
[PlyCount "103"]
[EventDate "2018.12.14"]
[EventType "swiss"]
[EventCountry "ESP"]
[SourceTitle "playchess.com"]
[Source "ChessBase"]
[SourceQuality "1"]
[TimeControl "40/5400+30:1800+30"]

1. d4 {[%emt 0:00:00]} f5 {[%emt 0:00:57]} 2. c4 {[%emt 0:00:00]} Nf6 {[%emt 0:00:15]} 3. Nc3 {[%emt 0:00:00]} e6 {[%emt 0:00:23]} 4. Nf3 {[%emt 0:00:18]} Be7 {[%emt 0:01:45]} 5. Bf4 {[%emt 0:00:14]} c6 {[%emt 0:01:22]} 6. Qc2 {[%emt 0:00:35]} d5 {[%emt 0:01:48]} 7. e3 {[%emt 0:00:05]} O-O {[%emt 0:00:45]} 8. Bd3 {[%emt 0:00:19]} Ne4 {[%emt 0:02:57]} 9. g4 {[%emt 0:02:44]} g5 {[%emt 0:12:26] A84: Dutch Defence: 2 c4 Miscellaneous} 10. Be5 {[%emt 0:08:45]} Nd7 {[%emt 0:06:09]} 11. h4 {[%emt 0:12:06]} gxh4 {[%emt 0:07:54]} 12. gxf5 {[%emt 0:00:28]} Nxe5 {[%emt 0:01:14]} 13. Nxe5 {[%emt 0:00:22]} exf5 {[%emt 0:00:57] [#]} 14. O-O-O $146 {[%emt 0:05:27]} ({Predecessor:} 14. cxd5 Nxc3 15. bxc3 cxd5 16. Qe2 Be6 17. Qh5 {1-0 (29) Khenkin,I (2638)-Vladimirov,V (2109) Tashkent 2013}) 14... Be6 {[%emt 0:01:40]} 15. c5 {[%emt 0:00:15]} Bf6 {[%emt 0:05:14]} 16. Nf3 {[%emt 0:06:12]} a5 {[%emt 0:01:03]} 17. Rh2 {[%emt 0:00:21]} Kh8 {[%emt 0:02:24]} 18. Rdh1 {[%emt 0:00:58]} Rg8 {[%emt 0:04:48]} 19. Nxh4 {[%emt 0:03:17]} Bxh4 {[%emt 0:00:38]} 20. Ne2 {[%emt 0:03:48]} Rg7 {[%emt 0:10:05]} 21. Rxh4 {[%emt 0:08:54]} Qg5 {[%emt 0:08:12]} 22. R4h2 {[%emt 0:07:24]} Nxf2 {[%emt 0:02:58]} 23. Nf4 {[%emt 0:06:18]} Nxh1 {[%emt 0:04:47]} 24. Rxh1 {[%emt 0:00:11]} Rf8 {[%emt 0:05:20]} 25. Kd2 {[%emt 0:00:52]} Bd7 {[%emt 0:01:31]} 26. Kc3 {[%emt 0:00:32]} Re7 {[%emt 0:03:22]} 27. Qf2 {[%emt 0:01:16]} Rg8 {[%emt 0:01:08]} 28. Rh3 {[%emt 0:08:29]} Rgg7 {[%emt 0:03:52]} 29. Nh5 {[%emt 0:00:30]} Rgf7 {[%emt 0:01:16]} 30. Nf4 {[%emt 0:01:19]} Rg7 {[%emt 0:02:31]} 31. Nh5 {[%emt 0:01:25]} Qg1 {[%emt 0:01:54]} 32. Qh4 {[%emt 0:01:39]} Qg4 {[%emt 0:01:14]} 33. Nxg7 {[%emt 0:02:42]} Qxh4 {[%emt 0:00:36]} 34. Rxh4 {[%emt 0:00:06]} Rxg7 {[%emt 0:00:08]} 35. Rf4 {[%emt 0:00:47]} Rg3 {[%emt 0:00:57]} 36. Kd2 {[%emt 0:00:48]} Rg2+ {[%emt 0:00:51]} 37. Kc3 {[%emt 0:00:02]} Rg5 {[%emt 0:00:35]} 38. a3 {[%emt 0:01:05]} Kg7 {[%emt 0:00:25]} 39. b4 {[%emt 0:00:08]} axb4+ {[%emt 0:00:10]} 40. Kxb4 {[%emt 0:00:00]} Kf6 {[%emt 0:00:00]} 41. Ka5 {[%emt 0:01:03]} Rg3 42. a4 {[%emt 0:05:38]} Rxe3 {[%emt 0:03:14]} 43. Bc2 {[%emt 0:00:14]} Re2 {[%emt 0:00:50]} 44. Bd1 {[%emt 0:00:49]} Rb2 {[%emt 0:03:49]} 45. Rh4 {[%emt 0:01:37]} Kg7 {[%emt 0:01:10]} 46. Rh3 {[%emt 0:03:57]} f4 {[%emt 0:05:10]} 47. Rh1 $2 {[%emt 0:04:27]} (47. Rh4 $17 {was the only defense.}) 47... h6 $2 {[%emt 0:08:03]} (47... Rb1 48. Rxh7+ {[%mdl 64] Decoy} Kxh7 49. Bc2+ Kh6 50. Bxb1 Kg5) 48. Rf1 $2 {[%emt 0:00:49]} (48. Rh4 $17 {nothing else works.}) 48... Rb1 {[%emt 0:00:45]} (48... Bf5 $19 49. Rxf4 Kg6) 49. Be2 {[%emt 0:01:56]} Rb2 $2 {[%emt 0:02:42]} ({Better is} 49... Rxf1 $19 50. Bxf1 h5) 50. Bd1 {[%emt 0:00:14]} Rd2 $2 {[%emt 0:04:10]} 51. Kb6 {[%emt 0:00:04]} Rxd4 {[%emt 0:00:21]} 52. Kxb7 $11 1/2-1/2

[Event "V Sunway Sitges Open 2018"]
[Site "Sitges"]
[Date "2018.12.20"]
[Round "7"]
[White "Rocher Gonzalez, Vicenc"]
[Black "Lopez Capape, Armando"]
[Result "0-1"]
[ECO "A10"]
[WhiteElo "1798"]
[BlackElo "1827"]
[Annotator "NA RC"]
[PlyCount "138"]
[EventDate "2018.12.14"]
[EventType "swiss"]
[EventCountry "ESP"]
[SourceTitle "playchess.com"]
[Source "ChessBase"]
[SourceQuality "1"]
[TimeControl "40/5400+30:1800+30"]

1. c4 {[%emt 0:00:00]} b6 {[%emt 0:07:06]} 2. Nc3 {[%emt 0:00:34]} e6 {[%emt 0:00:09]} 3. Nf3 {[%emt 0:01:41] A10: English Opening: Unusual Replies for Black} (3. e4 Bb7 4. Nf3 Bb4 5. Bd3 Ne7 6. O-O Bxc3 7. bxc3 d6 8. Bc2 Nd7 9. d4 e5 10. Re1 O-O 11. Nd2 Ng6 12. Nf1 h6 13. Ng3 Kh7 {1-0 (33) Caruana,F (2802)-Hou,Y (2652) chess.com INT 2017}) 3... f5 {[%emt 0:01:59]} 4. g3 {[%emt 0:01:05]} Bb7 {[%emt 0:00:12]} 5. Bg2 {[%emt 0:00:51]} Nf6 {[%emt 0:00:53]} 6. d3 {[%emt 0:01:51]} Be7 {[%emt 0:03:44]} 7. O-O {[%emt 0:01:24]} O-O {[%emt 0:01:38]} 8. Re1 {[%emt 0:03:12]} d5 $146 {[%emt 0:11:14]} ({Predecessor:} 8... Qe8 9. Bf4 d6 10. e4 e5 11. Be3 fxe4 12. Ng5 Qg6 13. Ngxe4 Nxe4 14. dxe4 {½-½ (63) Brunello,S (2575)-Rombaldoni,A (2459) Perugia 2011}) 9. Ne5 {[%emt 0:12:50]} Nbd7 {[%emt 0:04:09]} 10. Bf4 {[%emt 0:03:36]} Nxe5 {[%emt 0:02:34]} 11. Bxe5 {[%emt 0:01:05]} Ng4 {[%emt 0:08:42]} 12. d4 {[%emt 0:03:46]} Nxe5 {[%emt 0:10:29]} 13. dxe5 {[%emt 0:00:06]} c6 {[%emt 0:02:04]} 14. cxd5 {[%emt 0:03:10]} cxd5 {[%emt 0:00:50]} 15. Nb5 {[%emt 0:05:15]} Qd7 {[%emt 0:02:36]} 16. Qd3 {[%emt 0:08:22]} Ba6 {[%emt 0:18:33]} 17. a4 {[%emt 0:00:31]} Bxb5 {[%emt 0:04:12]} 18. axb5 {[%emt 0:02:57]} Qc7 {[%emt 0:00:43]} 19. f4 {[%emt 0:04:22]} Rfc8 {[%emt 0:00:47]} 20. Red1 {[%emt 0:04:53]} Qc2 {[%emt 0:03:13]} ({Black should try} 20... Qc5+ $15 21. e3 Qc2) 21. b3 {[%emt 0:05:35]} Rc3 {[%emt 0:01:35]} (21... Qxd3 $15 22. Rxd3 Rc5) 22. Qxc2 {[%emt 0:01:16]} Rxc2 {[%emt 0:00:06]} 23. Kf1 {[%emt 0:03:28]} Rc5 {[%emt 0:04:35]} 24. Rac1 {[%emt 0:05:07]} Rac8 {[%emt 0:00:19]} 25. Ra1 {[%emt 0:01:09]} R8c7 {[%emt 0:00:32]} 26. Rd3 {[%emt 0:04:35]} Rxb5 {[%emt 0:01:06]} 27. Ke1 {[%emt 0:01:18]} a5 {[%emt 0:00:14]} 28. Bf1 {[%emt 0:05:28]} Bb4+ {[%emt 0:00:22]} 29. Kf2 {[%emt 0:00:47]} Rbc5 {[%emt 0:00:14]} 30. Rb1 {[%emt 0:01:53]} Kf8 {[%emt 0:01:10]} 31. Kf3 {[%emt 0:01:10]} h6 {[%emt 0:03:31]} 32. g4 {[%emt 0:01:07]} g6 {[%emt 0:00:26]} 33. gxf5 {[%emt 0:02:46]} gxf5 {[%emt 0:00:08]} 34. Kg3 {[%emt 0:01:16]} Rc1 {[%emt 0:01:20]} 35. Rxc1 {[%emt 0:01:30]} Rxc1 {[%emt 0:00:06]} 36. Bg2 {[%emt 0:00:27]} Rc3 {[%emt 0:02:43]} 37. Bf3 {[%emt 0:01:48]} b5 {[%emt 0:00:54]} 38. Rxc3 {[%emt 0:00:26]} Bxc3 {[%emt 0:00:05]} 39. e3 {[%emt 0:00:41]} a4 {[%emt 0:00:19]} 40. bxa4 {[%emt 0:00:00]} bxa4 {[%emt 0:00:00]} 41. Bd1 {[%emt 0:00:22]} a3 {[%emt 0:00:17]} 42. Bb3 {[%emt 0:00:28]} Be1+ {[%emt 0:00:37]} 43. Kf3 {[%emt 0:00:40]} Ke7 {[%emt 0:00:30]} 44. Ke2 {[%emt 0:00:35]} Bh4 {[%emt 0:00:29]} 45. Kd3 {[%emt 0:00:43]} Kd7 {[%emt 0:00:05]} 46. Kc2 {[%emt 0:02:44]} Bf2 {[%emt 0:03:29]} 47. Kd3 {[%emt 0:00:42]} Kc6 {[%emt 0:00:34]} 48. h3 {[%emt 0:01:17]} Kb5 {[%emt 0:01:07]} 49. Ke2 {[%emt 0:02:35]} Bh4 {[%emt 0:08:29]} 50. Kd3 {[%emt 0:01:29]} Kb4 {[%emt 0:00:29]} 51. Ba2 {[%emt 0:00:57]} Bd8 {[%emt 0:11:07]} 52. Kc2 {[%emt 0:01:17]} Bb6 {[%emt 0:00:34]} 53. Kd3 {[%emt 0:01:56]} Bc5 {[%emt 0:00:30]} 54. Kd2 {[%emt 0:00:51]} Kb5 {[%emt 0:00:19]} 55. Kd3 {[%emt 0:00:52]} Kc6 {[%emt 0:00:16]} 56. Ke2 {[%emt 0:04:12]} Kd7 {[%emt 0:00:13]} 57. h4 {[%emt 0:01:16]} h5 {[%emt 0:01:30]} 58. Kf3 {[%emt 0:01:40]} Be7 {[%emt 0:01:26]} 59. Kg3 {[%emt 0:00:44]} Kc6 {[%emt 0:00:37]} 60. Bb3 {[%emt 0:01:16]} Kc5 {[%emt 0:00:23]} 61. Ba2 {[%emt 0:01:00]} Kb4 {[%emt 0:00:42]} 62. e4 {[%emt 0:00:29]} fxe4 {[%emt 0:02:45]} 63. f5 {[%emt 0:00:18]} exf5 {[%emt 0:03:10]} 64. Bxd5 {[%emt 0:00:08]} e3 {[%emt 0:00:39]} 65. Kf3 {[%emt 0:00:51]} f4 {[%emt 0:00:16]} 66. Ke2 {[%emt 0:01:09]} Bxh4 {[%emt 0:00:13]} 67. Kd3 {[%emt 0:00:46]} Be7 {[%emt 0:00:33]} 68. Kc2 {[%emt 0:01:11]} h4 {[%emt 0:00:38]} 69. Bg2 {[%emt 0:00:44]} e2 {[%emt 0:01:02]} 0-1

[Event "V Sunway Sitges Open 2018"]
[Site "Sitges"]
[Date "2018.12.20"]
[Round "7"]
[White "Isaksson, Philip"]
[Black "Lopez Arjona, Emilio"]
[Result "1-0"]
[ECO "B28"]
[WhiteElo "1459"]
[BlackElo "1535"]
[Annotator "NA"]
[PlyCount "71"]
[EventDate "2018.12.14"]
[EventType "swiss"]
[EventCountry "ESP"]
[SourceTitle "playchess.com"]
[Source "ChessBase"]
[SourceQuality "1"]
[TimeControl "40/5400+30:1800+30"]

1. e4 {[%emt 0:00:00]} c5 {[%emt 0:00:00]} 2. Nf3 {[%emt 0:00:00]} a6 {[%emt 0:00:04]} 3. a4 {[%emt 0:00:36]} Nf6 {[%emt 0:00:44]} 4. Nc3 {[%emt 0:00:10]} d6 {[%emt 0:00:31]} 5. h3 {[%emt 0:00:50]} Nc6 {[%emt 0:01:33]} 6. d4 {[%emt 0:10:06]} cxd4 {[%emt 0:00:27]} 7. Nxd4 {[%emt 0:02:09]} Qc7 {[%emt 0:01:34]} 8. Be3 {[%emt 0:03:46]} e5 {[%emt 0:02:05]} 9. Nb3 {[%emt 0:03:42]} Be7 {[%emt 0:03:43]} 10. Be2 {[%emt 0:02:35]} O-O {[%emt 0:00:34]} 11. O-O {[%emt 0:02:27]} b6 {[%emt 0:02:57]} 12. Nd2 {[%emt 0:10:36]} Bb7 {[%emt 0:01:07]} 13. Nc4 {[%emt 0:04:55]} Rab8 {[%emt 0:04:01]} 14. Bxb6 {[%emt 0:09:38]} Qd7 {[%emt 0:02:43]} 15. Bf3 {[%emt 0:21:13]} Rfc8 {[%emt 0:02:56]} 16. b3 {[%emt 0:03:59]} Nb4 {[%emt 0:00:25]} 17. Ba5 {[%emt 0:03:43]} Nc6 {[%emt 0:00:28]} 18. Nb6 {[%emt 0:06:02]} Qe8 {[%emt 0:03:52]} 19. Nxc8 {[%emt 0:01:31]} Rxc8 {[%emt 0:00:37]} 20. Bb6 {[%emt 0:00:38]} Nb4 {[%emt 0:03:31]} 21. Ba5 {[%emt 0:07:24]} Nc6 {[%emt 0:00:34]} 22. Bb6 {[%emt 0:00:02]} Bd8 {[%emt 0:00:44]} 23. Bxd8 {[%emt 0:00:22]} Qxd8 {[%emt 0:00:18]} 24. Nd5 {[%emt 0:00:39]} Nd4 {[%emt 0:01:33]} 25. c4 {[%emt 0:00:53]} Bxd5 {[%emt 0:01:04]} 26. exd5 {[%emt 0:00:26]} Nxb3 {[%emt 0:00:45]} 27. Qxb3 {[%emt 0:00:33]} Nd7 {[%emt 0:00:58]} 28. Qb4 {[%emt 0:02:32]} Nc5 {[%emt 0:00:06]} 29. Rab1 {[%emt 0:01:08]} f5 {[%emt 0:00:09]} 30. Qb6 {[%emt 0:00:30]} Qf6 {[%emt 0:00:00]} 31. a5 {[%emt 0:01:23]} e4 {[%emt 0:00:02]} 32. Be2 {[%emt 0:00:19]} f4 {[%emt 0:00:07]} 33. Bg4 {[%emt 0:00:18]} Rf8 {[%emt 0:00:02]} 34. Be6+ {[%emt 0:00:28]} Kh8 {[%emt 0:00:01]} 35. Qxd6 {[%emt 0:00:24]} Nd3 {[%emt 0:03:08]} 36. Rb8 {[%emt 0:00:17]} 1-0

[Event "V Sunway Sitges Open 2018"]
[Site "Sitges"]
[Date "2018.12.20"]
[Round "7"]
[White "Barguer, Alexey"]
[Black "Goris-Schouwstra, Adry"]
[Result "0-1"]
[ECO "A06"]
[WhiteElo "1435"]
[BlackElo "1645"]
[Annotator "NA"]
[PlyCount "84"]
[EventDate "2018.12.14"]
[EventType "swiss"]
[EventCountry "ESP"]
[SourceTitle "playchess.com"]
[Source "ChessBase"]
[SourceQuality "1"]
[TimeControl "40/5400+30:1800+30"]

1. Nf3 {[%emt 0:00:00]} d5 {[%emt 0:00:00]} 2. g3 {[%emt 0:00:00]} Nf6 {[%emt 0:00:18]} 3. Bg2 {[%emt 0:00:00]} c6 {[%emt 0:01:02]} 4. O-O {[%emt 0:00:12]} g6 {[%emt 0:00:51]} 5. c4 {[%emt 0:00:29]} Bg7 {[%emt 0:00:18]} 6. cxd5 {[%emt 0:00:37]} cxd5 {[%emt 0:00:04]} 7. Qa4+ {[%emt 0:01:45]} Bd7 {[%emt 0:01:26]} 8. Qb3 {[%emt 0:01:15]} Bc6 {[%emt 0:00:52]} 9. Ne5 {[%emt 0:01:16]} e6 {[%emt 0:01:57]} 10. Nxc6 {[%emt 0:01:30]} Nxc6 {[%emt 0:03:48]} 11. Qxb7 {[%emt 0:00:50]} Na5 {[%emt 0:04:47]} 12. Qb5+ {[%emt 0:00:39]} Nd7 {[%emt 0:00:15]} 13. Nc3 {[%emt 0:02:08]} O-O {[%emt 0:02:23]} 14. Rb1 {[%emt 0:03:28]} Rb8 {[%emt 0:00:32]} 15. Qd3 {[%emt 0:01:28]} Ne5 {[%emt 0:00:37]} 16. Qc2 {[%emt 0:00:47]} Qd7 {[%emt 0:03:34]} 17. b3 {[%emt 0:04:16]} Rfc8 {[%emt 0:00:36]} 18. Qd1 {[%emt 0:00:24]} d4 {[%emt 0:01:26]} 19. Na4 {[%emt 0:02:28]} d3 {[%emt 0:05:48]} 20. e3 {[%emt 0:02:06]} Qb5 {[%emt 0:09:20]} 21. Nc3 {[%emt 0:01:50]} Qd7 {[%emt 0:02:00]} 22. Bb2 {[%emt 0:00:46]} Nec6 {[%emt 0:00:40]} 23. Bxc6 {[%emt 0:07:21]} Nxc6 {[%emt 0:02:47]} 24. f4 {[%emt 0:04:16]} Ne7 {[%emt 0:04:43]} 25. e4 {[%emt 0:02:51]} a5 {[%emt 0:03:09]} 26. Rf3 {[%emt 0:03:41]} Rb4 {[%emt 0:06:03]} 27. a3 {[%emt 0:05:23]} Rb7 {[%emt 0:01:29]} 28. e5 {[%emt 0:00:46]} Rcb8 {[%emt 0:01:25]} 29. Ne4 {[%emt 0:02:37]} Rxb3 {[%emt 0:06:42]} 30. Nc5 {[%emt 0:02:23]} Qa7 {[%emt 0:00:29]} 31. Qc1 {[%emt 0:03:15]} Rxb2 {[%emt 0:02:49]} 32. Rxb2 {[%emt 0:00:33]} Rxb2 {[%emt 0:00:52]} 33. Qxb2 {[%emt 0:00:08]} Qxc5+ {[%emt 0:00:06]} 34. Kg2 {[%emt 0:00:22]} Qc4 {[%emt 0:11:00]} 35. Qb8+ {[%emt 0:01:07]} Bf8 {[%emt 0:00:22]} 36. Qa7 {[%emt 0:05:53]} Nc6 {[%emt 0:03:10]} 37. Qc7 {[%emt 0:00:37]} Qd5 {[%emt 0:01:15]} 38. Kf2 {[%emt 0:02:17]} Bc5+ {[%emt 0:00:53]} 39. Re3 {[%emt 0:01:05]} Bxe3+ {[%emt 0:00:34]} 40. Kxe3 {[%emt 0:00:00]} Qc5+ {[%emt 0:00:00]} 41. Ke4 {[%emt 0:00:53]} Qc4+ {[%emt 0:03:12]} 42. Kf3 {[%emt 0:00:14]} Nd4+ 0-1